[Event "Titled Tuesday Blitz June 28 Early 2022"]
[White "Malyi, Viacheslav"]
[Black "Vidruska, Renate"]
[WhiteFideId "14123983"]
[BlackFideId "11601841"]
[WhiteElo "2270"]
[BlackElo "1873"]
[Result "1/2-1/2"]
[Round "08"]
[TimeControl "180+1"]
[Date "2022.06.28"]
[WhiteClock "0:00:11"]
[BlackClock "0:00:07"]

1. e4 {[%clk 0:02:58]}  e5 {[%clk 0:02:58]} 2. Nf3 {[%clk 0:02:58]}  Nf6 {[%clk 0:02:57]} 3. Nxe5 {[%clk 0:02:57]}  d6 {[%clk 0:02:56]} 4. Nf3 {[%clk 0:02:57]}  Nxe4 {[%clk 0:02:55]} 5. d3 {[%clk 0:02:57]}  Nf6 {[%clk 0:02:55]} 6. d4 {[%clk 0:02:58]}  d5 {[%clk 0:02:55]} 7. Bd3 {[%clk 0:02:59]}  Bd6 {[%clk 0:02:54]} 8. O-O {[%clk 0:03:00]}  O-O {[%clk 0:02:53]} 9. c3 {[%clk 0:03:01]}  c5 {[%clk 0:02:51]} 10. dxc5 {[%clk 0:02:59]}  Bxc5 {[%clk 0:02:50]} 11. Bg5 {[%clk 0:02:58]}  Nbd7 {[%clk 0:02:48]} 12. Nbd2 {[%clk 0:02:59]}  h6 {[%clk 0:02:46]} 13. Bh4 {[%clk 0:02:59]}  Qc7 {[%clk 0:02:42]} 14. Nb3 {[%clk 0:02:58]}  Bd6 {[%clk 0:02:42]} 15. Nbd4 {[%clk 0:02:57]}  a6 {[%clk 0:02:39]} 16. Nf5 {[%clk 0:02:57]}  Bf4 {[%clk 0:02:38]} 17. Bg3 {[%clk 0:02:57]}  Nc5 {[%clk 0:02:35]} 18. Bc2 {[%clk 0:02:55]}  Nce4 {[%clk 0:02:28]} 19. N5d4 {[%clk 0:02:44]}  Bg4 {[%clk 0:02:22]} 20. Bb3 {[%clk 0:02:38]}  Nxg3 {[%clk 0:02:07]} 21. hxg3 {[%clk 0:02:33]}  Bd6 {[%clk 0:02:07]} 22. Qd3 {[%clk 0:02:29]}  b5 {[%clk 0:02:02]} 23. Bc2 {[%clk 0:02:27]}  g6 {[%clk 0:02:01]} 24. Rfe1 {[%clk 0:02:26]}  Kg7 {[%clk 0:02:01]} 25. Bb3 {[%clk 0:02:20]}  Rad8 {[%clk 0:01:50]} 26. Bc2 {[%clk 0:02:19]}  Rc8 {[%clk 0:01:48]} 27. Nh4 {[%clk 0:02:19]}  Rfd8 {[%clk 0:01:44]} 28. Nxg6 {[%clk 0:02:18]}  b4 {[%clk 0:01:38]} 29. Nh4 {[%clk 0:02:09]}  bxc3 {[%clk 0:01:32]} 30. Nhf5+ {[%clk 0:02:04]}  Kf8 {[%clk 0:01:32]} 31. bxc3 {[%clk 0:02:00]}  Qxc3 {[%clk 0:01:30]} 32. Nxd6 {[%clk 0:01:55]}  Qxd3 {[%clk 0:01:26]} 33. Bxd3 {[%clk 0:01:56]}  Rxd6 {[%clk 0:01:27]} 34. f3 {[%clk 0:01:53]}  Bd7 {[%clk 0:01:26]} 35. Rec1 {[%clk 0:01:52]}  Rb6 {[%clk 0:01:22]} 36. Rxc8+ {[%clk 0:01:50]}  Bxc8 {[%clk 0:01:23]} 37. Rc1 {[%clk 0:01:50]}  Bd7 {[%clk 0:01:22]} 38. Kf2 {[%clk 0:01:48]}  Ke8 {[%clk 0:01:19]} 39. Ke3 {[%clk 0:01:45]}  Rb2 {[%clk 0:01:18]} 40. Rc2 {[%clk 0:01:44]}  Rb6 {[%clk 0:01:13]} 41. g4 {[%clk 0:01:43]}  Ng8 {[%clk 0:01:07]} 42. Rc7 {[%clk 0:01:42]}  Ne7 {[%clk 0:01:05]} 43. Ra7 {[%clk 0:01:38]}  Bc8 {[%clk 0:00:59]} 44. Rc7 {[%clk 0:01:33]}  Kd8 {[%clk 0:00:55]} 45. Rc1 {[%clk 0:01:29]}  Bd7 {[%clk 0:00:51]} 46. Rb1 {[%clk 0:01:29]}  Rxb1 {[%clk 0:00:49]} 47. Bxb1 {[%clk 0:01:30]}  a5 {[%clk 0:00:49]} 48. Bd3 {[%clk 0:01:25]}  Nc8 {[%clk 0:00:49]} 49. Bf5 {[%clk 0:00:57]}  Nd6 {[%clk 0:00:45]} 50. Bxd7 {[%clk 0:00:52]}  Kxd7 {[%clk 0:00:45]} 51. Nf5 {[%clk 0:00:52]}  Nc4+ {[%clk 0:00:43]} 52. Kd4 {[%clk 0:00:51]}  Ke6 {[%clk 0:00:28]} 53. Nxh6 {[%clk 0:00:49]}  Na3 {[%clk 0:00:27]} 54. g5 {[%clk 0:00:42]}  Nc2+ {[%clk 0:00:27]} 55. Kc3 {[%clk 0:00:38]}  Ne3 {[%clk 0:00:25]} 56. g3 {[%clk 0:00:33]}  Nf1 {[%clk 0:00:23]} 57. g4 {[%clk 0:00:31]}  Nh2 {[%clk 0:00:23]} 58. f4 {[%clk 0:00:30]}  Nf3 {[%clk 0:00:19]} 59. Kd3 {[%clk 0:00:28]}  Ke7 {[%clk 0:00:18]} 60. a4 {[%clk 0:00:26]}  Ke6 {[%clk 0:00:17]} 61. Ke3 {[%clk 0:00:25]}  Ne1 {[%clk 0:00:17]} 62. Kd4 {[%clk 0:00:25]}  Nc2+ {[%clk 0:00:16]} 63. Kc5 {[%clk 0:00:20]}  Nb4 {[%clk 0:00:14]} 64. f5+ {[%clk 0:00:19]}  Ke7 {[%clk 0:00:14]} 65. Kd4 {[%clk 0:00:18]}  Kd6 {[%clk 0:00:13]} 66. Nxf7+ {[%clk 0:00:18]}  Ke7 {[%clk 0:00:12]} 67. Ne5 {[%clk 0:00:18]}  Kd6 {[%clk 0:00:13]} 68. Nd3 {[%clk 0:00:17]}  Nc6+ {[%clk 0:00:12]} 69. Ke3 {[%clk 0:00:17]}  Ne7 {[%clk 0:00:13]} 70. g6 {[%clk 0:00:17]}  Ng8 {[%clk 0:00:11]} 71. Kf4 {[%clk 0:00:17]}  d4 {[%clk 0:00:11]} 72. g5 {[%clk 0:00:17]}  Kd5 {[%clk 0:00:11]} 73. f6 {[%clk 0:00:17]}  Ke6 {[%clk 0:00:12]} 74. f7 {[%clk 0:00:16]}  Ne7 {[%clk 0:00:11]} 75. Ke4 {[%clk 0:00:12]}  Nxg6 {[%clk 0:00:11]} 76. Kxd4 {[%clk 0:00:13]}  Kxf7 {[%clk 0:00:11]} 77. Kc5 {[%clk 0:00:13]}  Ne7 {[%clk 0:00:10]} 78. Kb5 {[%clk 0:00:13]}  Nd5 {[%clk 0:00:10]} 79. Ne5+ {[%clk 0:00:11]}  Ke6 {[%clk 0:00:10]} 80. g6 {[%clk 0:00:11]}  Kxe5 {[%clk 0:00:07]} 81. g7 {[%clk 0:00:11]}  Ne7 {[%clk 0:00:06]} 82. Kxa5 {[%clk 0:00:11]}  Kf6 {[%clk 0:00:07]} 83. Kb6 {[%clk 0:00:11]}  Kxg7 {[%clk 0:00:07]} 84. a5 {[%clk 0:00:12]}  Nd5+ {[%clk 0:00:07]} 85. Kc5 {[%clk 0:00:12]}  Nc7 {[%clk 0:00:07]} 86. Kc6 {[%clk 0:00:12]}  Na6 {[%clk 0:00:07]} 87. Kb6 {[%clk 0:00:12]}  Nb4 {[%clk 0:00:07]} 88. Kb5 {[%clk 0:00:12]}  Nd5 {[%clk 0:00:07]} 89. Kc6 {[%clk 0:00:12]}  Nb4+ {[%clk 0:00:08]} 90. Kc5 {[%clk 0:00:12]}  Na6+ {[%clk 0:00:08]} 91. Kb6 {[%clk 0:00:13]}  Nb4 {[%clk 0:00:08]} 92. Kb5 {[%clk 0:00:13]}  Nd5 {[%clk 0:00:08]} 93. Kc5 {[%clk 0:00:10]}  Nc7 {[%clk 0:00:08]} 94. Kd6 {[%clk 0:00:10]}  Na6 {[%clk 0:00:07]} 95. Kc6 {[%clk 0:00:11]}  Nb4+ {[%clk 0:00:07]} 96. Kb5 {[%clk 0:00:11]} 1/2-1/2


[Site "https://www.chess.com"]

[Event "Titled Tuesday Blitz June 28 Early 2022"]
[White "Melikhov, Evgeny V."]
[Black "Bringas Gomez, Artai"]
[WhiteFideId "4122046"]
[BlackFideId "24534064"]
[WhiteElo "1904"]
[BlackElo "1988"]
[Result "1-0"]
[Round "08"]
[TimeControl "180+1"]
[Date "2022.06.28"]
[WhiteClock "0:00:17"]
[BlackClock "0:00:12"]

1. d4 {[%clk 0:03:00]}  d5 {[%clk 0:02:59]} 2. c4 {[%clk 0:03:00]}  c6 {[%clk 0:02:59]} 3. Nc3 {[%clk 0:03:00]}  e6 {[%clk 0:02:58]} 4. e3 {[%clk 0:03:01]}  Nf6 {[%clk 0:02:57]} 5. Nf3 {[%clk 0:03:01]}  Bb4 {[%clk 0:02:56]} 6. Bd2 {[%clk 0:03:00]}  O-O {[%clk 0:02:56]} 7. Bd3 {[%clk 0:02:59]}  Nbd7 {[%clk 0:02:54]} 8. O-O {[%clk 0:02:59]}  b6 {[%clk 0:02:52]} 9. a3 {[%clk 0:02:58]}  Bxc3 {[%clk 0:02:52]} 10. Bxc3 {[%clk 0:02:58]}  Bb7 {[%clk 0:02:53]} 11. Qe2 {[%clk 0:02:48]}  Re8 {[%clk 0:02:50]} 12. e4 {[%clk 0:02:41]}  dxe4 {[%clk 0:02:47]} 13. Bxe4 {[%clk 0:02:41]}  Nxe4 {[%clk 0:02:48]} 14. Qxe4 {[%clk 0:02:41]}  Qc7 {[%clk 0:02:45]} 15. c5 {[%clk 0:02:29]}  Nf6 {[%clk 0:02:38]} 16. Qh4 {[%clk 0:02:26]}  Ba6 {[%clk 0:02:37]} 17. Rfe1 {[%clk 0:02:23]}  Bd3 {[%clk 0:02:31]} 18. Rad1 {[%clk 0:02:20]}  Bc2 {[%clk 0:02:29]} 19. Rd2 {[%clk 0:02:18]}  Bg6 {[%clk 0:02:25]} 20. Ne5 {[%clk 0:02:15]}  b5 {[%clk 0:02:21]} 21. b3 {[%clk 0:01:51]}  a5 {[%clk 0:02:21]} 22. Bb2 {[%clk 0:01:51]}  Red8 {[%clk 0:02:16]} 23. Rde2 {[%clk 0:01:45]}  Rd5 {[%clk 0:01:57]} 24. Re3 {[%clk 0:01:41]}  Bc2 {[%clk 0:01:45]} 25. Rg3 {[%clk 0:01:35]}  b4 {[%clk 0:01:34]} 26. Qxf6 {[%clk 0:01:29]}  Bg6 {[%clk 0:01:28]} 27. Qh4 {[%clk 0:01:28]}  bxa3 {[%clk 0:01:25]} 28. Bxa3 {[%clk 0:01:27]}  Bc2 {[%clk 0:01:20]} 29. Qg5 {[%clk 0:01:20]}  f6 {[%clk 0:01:07]} 30. Qxf6 {[%clk 0:01:19]}  Rf8 {[%clk 0:01:05]} 31. Qxe6+ {[%clk 0:01:19]}  Kh8 {[%clk 0:01:03]} 32. Nf7+ {[%clk 0:01:10]}  Kg8 {[%clk 0:00:59]} 33. Ne5+ {[%clk 0:01:03]}  Kh8 {[%clk 0:00:59]} 34. Rf3 {[%clk 0:00:46]}  Rdd8 {[%clk 0:00:47]} 35. Nf7+ {[%clk 0:00:41]}  Rxf7 {[%clk 0:00:45]} 36. Qxf7 {[%clk 0:00:35]}  Qb8 {[%clk 0:00:42]} 37. Re7 {[%clk 0:00:30]}  Rg8 {[%clk 0:00:42]} 38. d5 {[%clk 0:00:28]}  Bg6 {[%clk 0:00:38]} 39. Qf4 {[%clk 0:00:22]}  Qd8 {[%clk 0:00:20]} 40. d6 {[%clk 0:00:21]}  a4 {[%clk 0:00:20]} 41. Bb2 {[%clk 0:00:21]}  a3 {[%clk 0:00:19]} 42. Ba1 {[%clk 0:00:19]}  a2 {[%clk 0:00:19]} 43. Rxg7 {[%clk 0:00:19]}  Re8 {[%clk 0:00:15]} 44. Rxg6+ {[%clk 0:00:17]}  Re5 {[%clk 0:00:11]} 45. Qxe5+ {[%clk 0:00:17]}  Qf6 {[%clk 0:00:12]} 46. Qxf6# {[%clk 0:00:17]} 1-0


[Site "https://www.chess.com"]

[Event "Titled Tuesday Blitz June 28 Early 2022"]
[White "Nakamura, Hikaru"]
[Black "Vachier-Lagrave, Maxime"]
[WhiteFideId "2016192"]
[BlackFideId "623539"]
[WhiteElo "3155"]
[BlackElo "3021"]
[Result "1-0"]
[Round "08"]
[TimeControl "180+1"]
[Date "2022.06.28"]
[WhiteClock "0:00:10"]
[BlackClock "0:00:05"]

1. Nf3 {[%clk 0:03:00]}  Nf6 {[%clk 0:02:58]} 2. b3 {[%clk 0:03:00]}  g6 {[%clk 0:02:58]} 3. d4 {[%clk 0:03:00]}  Bg7 {[%clk 0:02:58]} 4. Bb2 {[%clk 0:03:01]}  b6 {[%clk 0:02:58]} 5. e3 {[%clk 0:03:01]}  Bb7 {[%clk 0:02:58]} 6. Be2 {[%clk 0:03:01]}  O-O {[%clk 0:02:58]} 7. O-O {[%clk 0:03:02]}  e6 {[%clk 0:02:58]} 8. c4 {[%clk 0:03:03]}  d5 {[%clk 0:02:58]} 9. Nc3 {[%clk 0:02:58]}  Nbd7 {[%clk 0:02:58]} 10. cxd5 {[%clk 0:02:57]}  Nxd5 {[%clk 0:02:57]} 11. Qc2 {[%clk 0:02:46]}  c5 {[%clk 0:02:49]} 12. Nxd5 {[%clk 0:02:38]}  Bxd5 {[%clk 0:02:50]} 13. Rad1 {[%clk 0:02:34]}  Rc8 {[%clk 0:02:47]} 14. e4 {[%clk 0:01:57]}  cxd4 {[%clk 0:02:45]} 15. Qb1 {[%clk 0:01:57]}  Bb7 {[%clk 0:02:41]} 16. Nxd4 {[%clk 0:01:58]}  a6 {[%clk 0:02:17]} 17. Qa1 {[%clk 0:01:42]}  e5 {[%clk 0:02:17]} 18. Nf3 {[%clk 0:01:36]}  Qe7 {[%clk 0:02:18]} 19. Nd2 {[%clk 0:01:35]}  Nc5 {[%clk 0:02:14]} 20. f3 {[%clk 0:01:35]}  b5 {[%clk 0:02:12]} 21. Ba3 {[%clk 0:01:33]}  Qg5 {[%clk 0:02:08]} 22. Kh1 {[%clk 0:01:31]}  Rfd8 {[%clk 0:02:04]} 23. Nb1 {[%clk 0:01:26]}  Ne6 {[%clk 0:02:02]} 24. Rxd8+ {[%clk 0:01:19]}  Rxd8 {[%clk 0:02:03]} 25. Bc1 {[%clk 0:01:18]}  Qh4 {[%clk 0:01:28]} 26. Be3 {[%clk 0:01:16]}  Nf4 {[%clk 0:01:23]} 27. Qb2 {[%clk 0:01:16]}  Qg5 {[%clk 0:01:06]} 28. Bd1 {[%clk 0:01:15]}  Qe7 {[%clk 0:01:05]} 29. Nc3 {[%clk 0:01:13]}  b4 {[%clk 0:01:03]} 30. Na4 {[%clk 0:01:13]}  Bc6 {[%clk 0:01:04]} 31. Nb6 {[%clk 0:01:08]}  Bb5 {[%clk 0:01:03]} 32. Rg1 {[%clk 0:01:09]}  Qd6 {[%clk 0:00:57]} 33. Qc2 {[%clk 0:01:02]}  h5 {[%clk 0:00:54]} 34. Nc4 {[%clk 0:01:02]}  Qe6 {[%clk 0:00:50]} 35. g3 {[%clk 0:00:55]}  Nh3 {[%clk 0:00:38]} 36. Rf1 {[%clk 0:00:56]}  g5 {[%clk 0:00:37]} 37. Be2 {[%clk 0:00:49]}  g4 {[%clk 0:00:37]} 38. Kg2 {[%clk 0:00:42]}  Qg6 {[%clk 0:00:32]} 39. fxg4 {[%clk 0:00:31]}  hxg4 {[%clk 0:00:33]} 40. Rf5 {[%clk 0:00:24]}  Rc8 {[%clk 0:00:17]} 41. Qd3 {[%clk 0:00:18]}  Bc6 {[%clk 0:00:18]} 42. Kf1 {[%clk 0:00:19]}  Bb5 {[%clk 0:00:15]} 43. Qd5 {[%clk 0:00:16]}  Bc6 {[%clk 0:00:15]} 44. Nxe5 {[%clk 0:00:13]}  Bxd5 {[%clk 0:00:10]} 45. Nxg6 {[%clk 0:00:13]}  Bxe4 {[%clk 0:00:10]} 46. Ne7+ {[%clk 0:00:13]}  Kf8 {[%clk 0:00:11]} 47. Rxf7+ {[%clk 0:00:13]}  Kxf7 {[%clk 0:00:10]} 48. Nxc8 {[%clk 0:00:13]}  Bf3 {[%clk 0:00:09]} 49. Bxa6 {[%clk 0:00:10]}  Ke6 {[%clk 0:00:08]} 50. Nb6 {[%clk 0:00:10]}  Bc3 {[%clk 0:00:07]} 51. Bd3 {[%clk 0:00:10]}  Kf6 {[%clk 0:00:06]} 52. Bc4 {[%clk 0:00:09]}  Ke5 {[%clk 0:00:05]} 53. Bd3 {[%clk 0:00:09]}  Kf6 {[%clk 0:00:05]} 54. Na4 {[%clk 0:00:10]}  Be5 {[%clk 0:00:05]} 55. Nc5 {[%clk 0:00:10]}  Ng5 {[%clk 0:00:05]} 56. Nd7+ {[%clk 0:00:10]} 1-0


[Site "https://www.chess.com"]

[Event "Titled Tuesday Blitz June 28 Early 2022"]
[White "Nilsson, Joakim"]
[Black "Vlassov, Nikolai"]
[WhiteFideId "1723383"]
[BlackFideId "4103360"]
[WhiteElo "2210"]
[BlackElo "2407"]
[Result "0-1"]
[Round "08"]
[TimeControl "180+1"]
[Date "2022.06.28"]
[WhiteClock "0:00:33"]
[BlackClock "0:00:15"]

1. d4 {[%clk 0:03:00]}  Nf6 {[%clk 0:02:55]} 2. Nc3 {[%clk 0:02:57]}  d5 {[%clk 0:02:55]} 3. Bf4 {[%clk 0:02:56]}  g6 {[%clk 0:02:54]} 4. h4 {[%clk 0:02:56]}  Bg7 {[%clk 0:02:51]} 5. e3 {[%clk 0:02:55]}  c6 {[%clk 0:02:49]} 6. h5 {[%clk 0:02:55]}  Nxh5 {[%clk 0:02:47]} 7. Rxh5 {[%clk 0:02:55]}  gxh5 {[%clk 0:02:47]} 8. Qxh5 {[%clk 0:02:56]}  Nd7 {[%clk 0:02:42]} 9. Nf3 {[%clk 0:02:53]}  b5 {[%clk 0:02:28]} 10. Ng5 {[%clk 0:02:45]}  Rf8 {[%clk 0:02:25]} 11. Ne6 {[%clk 0:02:40]}  Qa5 {[%clk 0:02:09]} 12. Bc7 {[%clk 0:02:38]}  Nb6 {[%clk 0:01:56]} 13. Nxg7+ {[%clk 0:02:33]}  Kd7 {[%clk 0:01:56]} 14. Bh2 {[%clk 0:02:26]}  Na4 {[%clk 0:01:50]} 15. Qg4+ {[%clk 0:02:18]}  Kd8 {[%clk 0:01:44]} 16. Qf4 {[%clk 0:02:14]}  Nxc3 {[%clk 0:01:17]} 17. bxc3 {[%clk 0:02:15]}  Qxc3+ {[%clk 0:01:15]} 18. Ke2 {[%clk 0:02:15]}  Qxc2+ {[%clk 0:01:12]} 19. Kf3 {[%clk 0:02:11]}  Qe4+ {[%clk 0:00:59]} 20. Qxe4 {[%clk 0:02:10]}  dxe4+ {[%clk 0:00:57]} 21. Kxe4 {[%clk 0:02:11]}  Bg4 {[%clk 0:00:49]} 22. Nf5 {[%clk 0:01:56]}  Kd7 {[%clk 0:00:40]} 23. Kf4 {[%clk 0:01:49]}  Bh5 {[%clk 0:00:39]} 24. g4 {[%clk 0:01:45]}  Bg6 {[%clk 0:00:39]} 25. Rc1 {[%clk 0:01:39]}  f6 {[%clk 0:00:37]} 26. Bg2 {[%clk 0:01:37]}  Rac8 {[%clk 0:00:37]} 27. Kf3 {[%clk 0:01:29]}  h5 {[%clk 0:00:36]} 28. Bh3 {[%clk 0:01:24]}  Rh8 {[%clk 0:00:32]} 29. Ng3 {[%clk 0:01:18]}  hxg4+ {[%clk 0:00:30]} 30. Bxg4+ {[%clk 0:01:18]}  e6 {[%clk 0:00:30]} 31. Kg2 {[%clk 0:01:17]}  Rh4 {[%clk 0:00:26]} 32. Bf3 {[%clk 0:01:16]}  e5 {[%clk 0:00:24]} 33. dxe5 {[%clk 0:01:15]}  fxe5 {[%clk 0:00:25]} 34. e4 {[%clk 0:01:06]}  c5 {[%clk 0:00:25]} 35. Nf5 {[%clk 0:01:03]}  Bxf5 {[%clk 0:00:23]} 36. exf5 {[%clk 0:01:04]}  e4 {[%clk 0:00:24]} 37. Be2 {[%clk 0:01:04]}  c4 {[%clk 0:00:24]} 38. Bg3 {[%clk 0:01:04]}  Rh7 {[%clk 0:00:23]} 39. Bg4 {[%clk 0:01:04]}  Rc5 {[%clk 0:00:22]} 40. f6+ {[%clk 0:01:03]}  Ke8 {[%clk 0:00:23]} 41. Re1 {[%clk 0:00:59]}  Kf7 {[%clk 0:00:22]} 42. Rxe4 {[%clk 0:00:55]}  Kxf6 {[%clk 0:00:23]} 43. Bd6 {[%clk 0:00:53]}  Rc6 {[%clk 0:00:22]} 44. Be5+ {[%clk 0:00:52]}  Kg5 {[%clk 0:00:21]} 45. Kg3 {[%clk 0:00:53]}  c3 {[%clk 0:00:21]} 46. f4+ {[%clk 0:00:52]}  Kg6 {[%clk 0:00:21]} 47. Rb4 {[%clk 0:00:43]}  c2 {[%clk 0:00:20]} 48. Bb2 {[%clk 0:00:44]}  c1=Q {[%clk 0:00:20]} 49. Bxc1 {[%clk 0:00:43]}  Rxc1 {[%clk 0:00:20]} 50. Rxb5 {[%clk 0:00:43]}  Rc3+ {[%clk 0:00:20]} 51. Kg2 {[%clk 0:00:42]}  Re7 {[%clk 0:00:20]} 52. Bf3 {[%clk 0:00:37]}  Ree3 {[%clk 0:00:19]} 53. Bh5+ {[%clk 0:00:35]}  Kh6 {[%clk 0:00:19]} 54. Kf2 {[%clk 0:00:34]}  Rh3 {[%clk 0:00:17]} 55. Ra5 {[%clk 0:00:34]}  Rxh5 {[%clk 0:00:15]} 56. Ra6+ {[%clk 0:00:33]}  Kg7 {[%clk 0:00:14]} 57. Rxa7+ {[%clk 0:00:34]}  Kf6 {[%clk 0:00:15]} 58. Ra6+ {[%clk 0:00:34]}  Kf5 {[%clk 0:00:15]} 59. Ra5+ {[%clk 0:00:34]}  Kg4 {[%clk 0:00:15]} 60. Ra4 {[%clk 0:00:33]}  Rh2+ {[%clk 0:00:14]} 61. Kg1 {[%clk 0:00:34]}  Rb2 {[%clk 0:00:15]} 62. f5+ {[%clk 0:00:34]}  Kg3 {[%clk 0:00:15]} 63. Rb4 {[%clk 0:00:33]}  Rc1# {[%clk 0:00:15]} 0-1


[Site "https://www.chess.com"]

[Event "Titled Tuesday Blitz June 28 Early 2022"]
[White "Novikova, Galina"]
[Black "D`Arruda, Ricardo D."]
[WhiteFideId "4157095"]
[BlackFideId "100692"]
[WhiteElo "1863"]
[BlackElo "2461"]
[Result "1/2-1/2"]
[Round "08"]
[TimeControl "180+1"]
[Date "2022.06.28"]
[WhiteClock "0:00:18"]
[BlackClock "0:00:11"]

1. e4 {[%clk 0:03:00]}  c5 {[%clk 0:02:59]} 2. Nf3 {[%clk 0:03:00]}  Nc6 {[%clk 0:02:58]} 3. d4 {[%clk 0:03:00]}  cxd4 {[%clk 0:02:59]} 4. Nxd4 {[%clk 0:03:01]}  e5 {[%clk 0:02:58]} 5. Nb3 {[%clk 0:02:57]}  Nf6 {[%clk 0:02:57]} 6. Bg5 {[%clk 0:02:47]}  Be7 {[%clk 0:02:52]} 7. Nc3 {[%clk 0:02:47]}  d6 {[%clk 0:02:49]} 8. Be2 {[%clk 0:02:44]}  Be6 {[%clk 0:02:49]} 9. O-O {[%clk 0:02:44]}  O-O {[%clk 0:02:48]} 10. Bxf6 {[%clk 0:02:44]}  Bxf6 {[%clk 0:02:49]} 11. Nd5 {[%clk 0:02:44]}  Bg5 {[%clk 0:02:49]} 12. c3 {[%clk 0:02:42]}  Ne7 {[%clk 0:02:46]} 13. Nxe7+ {[%clk 0:02:24]}  Bxe7 {[%clk 0:02:44]} 14. Qd3 {[%clk 0:02:25]}  d5 {[%clk 0:02:42]} 15. Rad1 {[%clk 0:02:22]}  dxe4 {[%clk 0:02:36]} 16. Qxe4 {[%clk 0:02:23]}  Qc7 {[%clk 0:02:35]} 17. Rfe1 {[%clk 0:02:17]}  f5 {[%clk 0:02:33]} 18. Qc2 {[%clk 0:02:09]}  Rad8 {[%clk 0:02:26]} 19. h3 {[%clk 0:02:05]}  Rxd1 {[%clk 0:02:22]} 20. Rxd1 {[%clk 0:02:05]}  Rd8 {[%clk 0:02:23]} 21. Bf3 {[%clk 0:02:03]}  b6 {[%clk 0:02:16]} 22. Rxd8+ {[%clk 0:02:00]}  Qxd8 {[%clk 0:02:16]} 23. Qe2 {[%clk 0:02:00]}  Bf6 {[%clk 0:02:06]} 24. Qa6 {[%clk 0:01:56]}  Qc7 {[%clk 0:01:54]} 25. Qb5 {[%clk 0:01:51]}  Qd7 {[%clk 0:01:45]} 26. Bc6 {[%clk 0:01:42]}  Qd1+ {[%clk 0:01:41]} 27. Kh2 {[%clk 0:01:43]}  e4 {[%clk 0:01:40]} 28. Bd5 {[%clk 0:01:31]}  Kf8 {[%clk 0:01:08]} 29. Bxe6 {[%clk 0:01:25]}  Qd6+ {[%clk 0:01:09]} 30. g3 {[%clk 0:01:21]}  Qxe6 {[%clk 0:01:09]} 31. Qa6 {[%clk 0:01:17]}  Qd7 {[%clk 0:01:06]} 32. Qc4 {[%clk 0:01:03]}  g6 {[%clk 0:01:04]} 33. Nd4 {[%clk 0:01:02]}  Bxd4 {[%clk 0:00:53]} 34. cxd4 {[%clk 0:01:02]}  Ke7 {[%clk 0:00:48]} 35. Kg2 {[%clk 0:00:58]}  Kd6 {[%clk 0:00:44]} 36. b4 {[%clk 0:00:50]}  Qc6 {[%clk 0:00:43]} 37. Qf7 {[%clk 0:00:47]}  e3+ {[%clk 0:00:42]} 38. Kf1 {[%clk 0:00:47]}  Qc1+ {[%clk 0:00:34]} 39. Kg2 {[%clk 0:00:46]}  Qc6+ {[%clk 0:00:33]} 40. Kf1 {[%clk 0:00:44]}  exf2 {[%clk 0:00:28]} 41. Qf6+ {[%clk 0:00:37]}  Kd5 {[%clk 0:00:28]} 42. Qe5+ {[%clk 0:00:37]}  Kc4 {[%clk 0:00:27]} 43. Kxf2 {[%clk 0:00:32]}  Kxb4 {[%clk 0:00:20]} 44. d5 {[%clk 0:00:31]}  Qc2+ {[%clk 0:00:18]} 45. Kf3 {[%clk 0:00:27]}  Qd3+ {[%clk 0:00:17]} 46. Kf2 {[%clk 0:00:26]}  Qd2+ {[%clk 0:00:17]} 47. Kf3 {[%clk 0:00:25]}  Qd3+ {[%clk 0:00:14]} 48. Kf2 {[%clk 0:00:25]}  Kc5 {[%clk 0:00:12]} 49. Qe7+ {[%clk 0:00:19]}  Kxd5 {[%clk 0:00:11]} 50. Qxa7 {[%clk 0:00:19]}  Qd4+ {[%clk 0:00:09]} 51. Kg2 {[%clk 0:00:20]}  Qd2+ {[%clk 0:00:08]} 52. Kf3 {[%clk 0:00:20]}  Qd3+ {[%clk 0:00:09]} 53. Kf2 {[%clk 0:00:20]}  Qd4+ {[%clk 0:00:08]} 54. Kf3 {[%clk 0:00:20]}  Kc4 {[%clk 0:00:08]} 55. Qxh7 {[%clk 0:00:18]}  Kd3 {[%clk 0:00:08]} 56. Qxg6 {[%clk 0:00:17]}  Qe4+ {[%clk 0:00:08]} 57. Kf2 {[%clk 0:00:16]}  Qe2+ {[%clk 0:00:09]} 58. Kg1 {[%clk 0:00:16]}  Qe1+ {[%clk 0:00:10]} 59. Kg2 {[%clk 0:00:16]}  Qe2+ {[%clk 0:00:10]} 60. Kg1 {[%clk 0:00:16]}  Qe1+ {[%clk 0:00:11]} 61. Kg2 {[%clk 0:00:17]}  Qe2+ {[%clk 0:00:11]} 62. Kg1 {[%clk 0:00:18]} 1/2-1/2


[Site "https://www.chess.com"]

[Event "Titled Tuesday Blitz June 28 Early 2022"]
[White "Nozdrachev, Leonid"]
[Black "Martinez, Shawn"]
[WhiteFideId "24113433"]
[BlackFideId "2039770"]
[WhiteElo "2129"]
[BlackElo "2174"]
[Result "1-0"]
[Round "08"]
[TimeControl "180+1"]
[Date "2022.06.28"]
[WhiteClock "0:00:09"]
[BlackClock "0:00:20"]

1. e4 {[%clk 0:03:00]}  c5 {[%clk 0:02:45]} 2. c3 {[%clk 0:02:59]}  Nf6 {[%clk 0:02:42]} 3. e5 {[%clk 0:02:58]}  Nd5 {[%clk 0:02:43]} 4. d4 {[%clk 0:02:58]}  cxd4 {[%clk 0:02:43]} 5. Nf3 {[%clk 0:02:59]}  e6 {[%clk 0:02:43]} 6. cxd4 {[%clk 0:02:59]}  Bb4+ {[%clk 0:02:42]} 7. Bd2 {[%clk 0:02:57]}  Bxd2+ {[%clk 0:02:37]} 8. Nbxd2 {[%clk 0:02:58]}  d6 {[%clk 0:02:35]} 9. Bd3 {[%clk 0:02:57]}  Nc6 {[%clk 0:02:31]} 10. O-O {[%clk 0:02:50]}  O-O {[%clk 0:02:18]} 11. Ne4 {[%clk 0:02:48]}  dxe5 {[%clk 0:02:17]} 12. dxe5 {[%clk 0:02:49]}  h6 {[%clk 0:02:16]} 13. Bb5 {[%clk 0:02:41]}  Bd7 {[%clk 0:02:08]} 14. Bc4 {[%clk 0:02:21]}  Nf4 {[%clk 0:01:55]} 15. Rc1 {[%clk 0:02:15]}  Ng6 {[%clk 0:01:51]} 16. Qd6 {[%clk 0:02:10]}  Qe7 {[%clk 0:01:40]} 17. Rfd1 {[%clk 0:02:06]}  Rfd8 {[%clk 0:01:37]} 18. g3 {[%clk 0:02:00]}  Be8 {[%clk 0:01:34]} 19. Qxe7 {[%clk 0:01:59]}  Ncxe7 {[%clk 0:01:34]} 20. Nd6 {[%clk 0:02:00]}  Bc6 {[%clk 0:01:34]} 21. Be2 {[%clk 0:01:50]}  Nd5 {[%clk 0:01:24]} 22. Kf1 {[%clk 0:01:41]}  Rd7 {[%clk 0:01:12]} 23. a3 {[%clk 0:01:37]}  Rad8 {[%clk 0:01:11]} 24. b4 {[%clk 0:01:03]}  Ba4 {[%clk 0:01:04]} 25. Rd4 {[%clk 0:00:58]}  Nxe5 {[%clk 0:01:00]} 26. Nxe5 {[%clk 0:00:52]}  Rxd6 {[%clk 0:01:00]} 27. b5 {[%clk 0:00:42]}  Nb6 {[%clk 0:00:56]} 28. Rxd6 {[%clk 0:00:37]}  Rxd6 {[%clk 0:00:57]} 29. Rc7 {[%clk 0:00:37]}  f6 {[%clk 0:00:52]} 30. Ng6 {[%clk 0:00:33]}  Rd7 {[%clk 0:00:49]} 31. Rc3 {[%clk 0:00:29]}  Bd1 {[%clk 0:00:43]} 32. Bxd1 {[%clk 0:00:17]}  Rxd1+ {[%clk 0:00:43]} 33. Ke2 {[%clk 0:00:18]}  Rb1 {[%clk 0:00:44]} 34. Rc7 {[%clk 0:00:14]}  Rb2+ {[%clk 0:00:44]} 35. Kf3 {[%clk 0:00:13]}  Rxb5 {[%clk 0:00:43]} 36. Rxb7 {[%clk 0:00:13]}  Rb3+ {[%clk 0:00:43]} 37. Kg4 {[%clk 0:00:12]}  Rxa3 {[%clk 0:00:43]} 38. h4 {[%clk 0:00:11]}  Ra5 {[%clk 0:00:41]} 39. h5 {[%clk 0:00:10]}  f5+ {[%clk 0:00:36]} 40. Kf4 {[%clk 0:00:10]}  Ra4+ {[%clk 0:00:24]} 41. Ke5 {[%clk 0:00:09]}  Re4+ {[%clk 0:00:21]} 42. Kd6 {[%clk 0:00:09]}  Nc4+ {[%clk 0:00:20]} 43. Ke7 {[%clk 0:00:09]} 1-0


[Site "https://www.chess.com"]